fUSD/lending_fUSD_20250225
["ID","MTS","AMOUNT","RATE_DAILY","PERIOD"]
[354476070,1740523841281,-500.0,0.00046575,120]
[354476071,1740523841291,-500.0,0.00046575,120]
[354476072,1740523841300,-500.0,0.00046575,120]
[354476073,1740523841309,-403.16,0.00046575,120]
[354476074,1740523841318,-500.0,0.00046575,120]
[354476075,1740523841327,-1218.74,0.00046575,120]
[354476076,1740523841337,-500.0,0.00046575,120]
[354476077,1740523841346,-500.0,0.00046575,120]
[354476078,1740523841355,-2320.94,0.00046575,120]
[354476079,1740523841365,-2085.08,0.00046575,120]
[354476080,1740523841374,-500.0,0.00046575,120]
[354476081,1740523841384,-2567.17,0.00046575,120]
[354476082,1740523841393,-500.0,0.00046575,120]
[354476083,1740523841402,-740.85,0.00046575,120]
[354476084,1740523841411,-500.0,0.00046575,120]
[354476085,1740523841421,-500.0,0.00046575,120]
[354476086,1740523841430,-2636.26,0.00046575,120]
[354476087,1740523841439,-500.0,0.00046575,120]
[354476088,1740523841448,-892.29,0.00046575,120]
[354476089,1740523841458,-1423.33,0.00046575,120]
[354476090,1740523841467,-500.0,0.00046575,120]
[354476091,1740523841476,-729.75,0.00046575,120]
[354476092,1740523841486,-705.75,0.00046575,120]
[354476093,1740523841495,-500.0,0.00046575,120]
[354476094,1740523841504,-1916.75,0.00046575,120]
[354476095,1740523841514,-1897.8,0.00046575,120]
[354476096,1740523841523,-4664.22,0.00046575,120]
[354476097,1740523841532,-668.16,0.00046575,120]
[354476098,1740523841542,-1806.42,0.00046575,120]
[354476099,1740523841551,-1138.11,0.00046575,120]
[354476100,1740523841560,-2886.8,0.00046575,120]
[354476101,1740523841570,-500.0,0.00046575,120]
[354476102,1740523841579,-500.0,0.00046575,120]
[354476103,1740523841588,-200.90828201,0.00046575,120]
[354476104,1740523841597,-2100.27,0.00046575,120]
[354476105,1740523841606,-500.0,0.00046575,120]
[354476106,1740523841615,-1366.44,0.00046575,120]
[354476107,1740523841624,-5059.03,0.00046575,120]
[354476108,1740523841634,-2916.03,0.00046575,120]
[354476109,1740523841642,-4319.09,0.00046575,120]
[354476110,1740523841651,-500.0,0.00046575,120]
[354476111,1740523841661,-3246.4,0.00046575,120]
[354476112,1740523841670,-500.0,0.00046575,120]
[354476113,1740523841680,-500.0,0.00046575,120]
[354476114,1740523841689,-2718.58,0.00046575,120]
[354476115,1740523841698,-500.0,0.00046575,120]
[354476116,1740523841708,-500.0,0.00046575,120]
[354476117,1740523841718,-1298.05,0.00046575,120]
[354476118,1740523841727,-2382.56,0.00046575,120]
[354476119,1740523841736,-3321.32,0.00046575,120]
[354476120,1740523841746,-1822.68,0.00046575,120]
[354476121,1740523841755,-500.0,0.00046575,120]
[354476122,1740523841765,-2682.79,0.00046575,120]
[354476123,1740523841774,-500.0,0.00046575,120]
[354476124,1740523841783,-3799.01,0.00046575,120]
[354476125,1740523841792,-2543.0,0.00046575,120]
[354476126,1740523841801,-2989.95,0.00046575,120]
[354476127,1740523841810,-2831.56,0.00046575,120]
[354476128,1740523841819,-2143.48,0.00046575,120]
[354476129,1740523841828,-505.39623642,0.00046575,120]
[354476130,1740523841837,-500.0,0.00046575,120]
[354476131,1740523841846,-750.97,0.00046575,120]
[354476132,1740523841855,-550.50885313,0.00046575,120]
[354476133,1740523841865,-500.0,0.00046575,120]
[354476134,1740523841875,-500.0,0.00046575,120]
[354476135,1740523841884,-500.0,0.00046575,120]
[354476136,1740523841893,-5029.55,0.00046575,120]
[354476137,1740523841902,-500.0,0.00046575,120]
[354476138,1740523841911,-519.98965761,0.00046575,120]
[354476139,1740523841920,-3467.63,0.00046575,120]
[354476140,1740523841929,-500.0,0.00046575,120]
[354476141,1740523841938,-500.0,0.00046575,120]
[354476142,1740523841947,-2203.36,0.00046575,120]
[354476143,1740523841956,-671.01,0.00046575,120]
[354476144,1740523841965,-500.0,0.00046575,120]
[354476145,1740523841974,-3071.38,0.00046575,120]
[354476146,1740523841983,-500.0,0.00046575,120]
[354476147,1740523841992,-551.69,0.00046575,120]
[354476148,1740523842000,-500.0,0.00046575,120]
[354476149,1740523842009,-1522.25,0.00046575,120]
[354476150,1740523842018,-3711.8,0.00046575,120]
[354476151,1740523842027,-500.0,0.00046575,120]
[354476152,1740523842036,-500.0,0.00046575,120]
[354476153,1740523842045,-500.0,0.00046575,120]
[354476154,1740523842054,-500.0,0.00046575,120]
[354476155,1740523842063,-500.0,0.00046575,120]
[354476156,1740523842072,-3960.02,0.00046575,120]
[354476157,1740523842083,-4099.32,0.00046575,120]
[354476158,1740523842093,-4671.2,0.00046575,120]
[354476159,1740523842102,-500.0,0.00046575,120]
[354476160,1740523842111,-500.0,0.00046575,120]
[354476161,1740523842120,-3780.25,0.00046575,120]
[354476162,1740523842130,-500.0,0.00046575,120]
[354476163,1740523842139,-1280.88,0.00046575,120]
[354476164,1740523842149,-569.48741098,0.00046575,120]
[354476165,1740523842159,-500.0,0.00046575,120]
[354476166,1740523842168,-2591.52,0.00046575,120]
[354476167,1740523842177,-4963.55,0.00046575,120]
[354476168,1740523842186,-500.0,0.00046575,120]
[354476169,1740523842195,-500.0,0.00046575,120]
[354476170,1740523842204,-6256.61,0.00046575,120]
[354476171,1740523842215,-500.0,0.00046575,120]
[354476172,1740523842224,-616.79,0.00046575,120]
[354476173,1740523842233,-500.0,0.00046575,120]
[354476174,1740523842242,-500.0,0.00046575,120]
[354476175,1740523842251,-643.58,0.00046575,120]
[354476176,1740523842260,-768.14,0.00046575,120]
[354476177,1740523842269,-500.0,0.00046575,120]
[354476178,1740523842278,-509.53,0.00046575,120]
[354476179,1740523842287,-1305.38,0.00046575,7]
[354476180,1740523842296,-500.0,0.00046575,120]
[354476181,1740523842305,-595.23,0.00046575,120]
[354476182,1740523842314,-4247.17,0.00046575,120]
[354476183,1740523842323,-500.0,0.00046575,120]
[354476184,1740523842333,-3964.13,0.00046575,120]
[354476185,1740523842342,-522.46852931,0.00046575,120]
[354476186,1740523842351,-1328.12,0.00046575,120]
[354476187,1740523842360,-500.0,0.00046575,120]
[354476188,1740523842369,-500.0,0.00046575,120]
[354476189,1740523842378,-500.0,0.00046575,120]
[354476190,1740523842387,-3898.94,0.00046575,120]
[354476191,1740523842396,-500.0,0.00046575,120]
[354476192,1740523842405,-500.0,0.00046575,120]
[354476193,1740523842414,-500.0,0.00046575,120]
[354476194,1740523842424,-5303.55,0.00046575,120]
[354476195,1740523842433,-570.36,0.00046575,120]
[354476196,1740523842443,-2763.31,0.00046575,120]
[354476197,1740523842452,-500.0,0.00046575,120]
[354476198,1740523842461,-500.0,0.00046575,120]
[354476199,1740523842471,-2107.57,0.00046575,120]
[354476200,1740523842480,-500.0,0.00046575,120]
[354476201,1740523842489,-500.0,0.00046575,7]
[354476202,1740523842499,-946.05,0.00046575,120]
[354476203,1740523842508,-500.0,0.00046575,120]
[354476204,1740523842517,-500.0,0.00046575,120]
[354476205,1740523842526,-500.0,0.00046575,120]
[354476206,1740523842536,-514.42880303,0.00046575,120]
[354476207,1740523842544,-799.82,0.00046575,120]
[354476208,1740523842553,-1452.98,0.00046575,120]
[354476209,1740523842563,-500.0,0.00046575,120]
[354476210,1740523842572,-872.21,0.00046575,120]
[354476211,1740523842581,-1308.96,0.00046575,120]
[354476212,1740523842590,-5564.94,0.00046575,100]
[354476213,1740523842600,-922.97,0.00046575,120]
[354476214,1740523842609,-4258.3,0.00046575,120]
[354476215,1740523842618,-500.0,0.00046575,120]
[354476216,1740523842627,-500.0,0.00046575,120]
[354476217,1740523842636,-1064.14,0.00046575,120]
[354476218,1740523842645,-923.48,0.00046575,120]
[354476219,1740523842654,-500.0,0.00046575,120]
[354476220,1740523842664,-500.0,0.00046575,120]
[354476221,1740523842673,-3714.28,0.00046575,120]
[354476222,1740523842682,-500.0,0.00046575,120]
[354476223,1740523842690,-500.0,0.00046575,120]
[354476224,1740523842699,-500.0,0.00046575,120]
[354476225,1740523842708,-2811.63,0.00046575,120]
[354476226,1740523842717,-500.0,0.00046575,120]
[354476227,1740523842726,-657.42,0.00046575,120]
[354476228,1740523842735,-500.0,0.00046575,120]
[354476229,1740523842744,-2840.63,0.00046575,120]
[354476230,1740523842753,-5487.35,0.00046575,120]
[354476231,1740523842762,-500.0,0.00046575,120]
[354476232,1740523842771,-527.96,0.00046575,120]
[354476233,1740523842780,-1379.62,0.00046575,120]
[354476234,1740523842789,-500.0,0.00046575,120]
[354476235,1740523842798,-500.0,0.00046575,120]
[354476236,1740523842806,-1664.86,0.00046575,120]
[354476237,1740523842815,-595.9,0.00046575,120]
[354476238,1740523842824,-500.0,0.00046575,120]
[354476239,1740523842834,-500.0,0.00046575,120]
[354476240,1740523842844,-1050.04,0.00046575,120]
[354476241,1740523842853,-500.0,0.00046575,120]
[354476242,1740523842862,-205.36691089,0.00046575,120]
[354476243,1740523842871,-500.0,0.00046575,120]
[354476244,1740523842880,-500.0,0.00046575,120]
[354476245,1740523842889,-711.18,0.00046575,120]
[354476246,1740523842898,-500.0,0.00046575,120]
[354476247,1740523842906,-500.0,0.00046575,120]
[354476248,1740523842916,-500.0,0.00046575,120]
[354476249,1740523842925,-1262.57,0.00046575,120]
[354476250,1740523842934,-3135.94,0.00046575,120]
[354476251,1740523842943,-500.0,0.00046575,120]
[354476252,1740523842952,-4313.99,0.00046575,120]
[354476253,1740523842961,-541.7845116,0.00046575,120]
[354476254,1740523842971,-500.0,0.00046575,120]
[354476255,1740523842980,-554.56630523,0.00046575,120]
[354476256,1740523842989,-5005.04,0.00046575,120]
[354476258,1740523842998,-500.0,0.00046575,120]
[354476259,1740523843007,-1692.2,0.00046575,120]
[354476260,1740523843016,-1196.06,0.00046575,120]
[354476261,1740523843025,-500.0,0.00046575,120]
[354476262,1740523843034,-538.74168047,0.00046575,120]
[354476263,1740523843044,-500.0,0.00046575,120]
[354476264,1740523843053,-500.0,0.00046575,120]
[354476265,1740523843063,-3291.08,0.00046575,120]
[354476266,1740523843074,-500.0,0.00046575,120]
[354476267,1740523843088,-3117.24,0.00046575,120]
[354476268,1740523843098,-500.0,0.00046575,120]
[354476269,1740523843108,-500.0,0.00046575,120]
[354476271,1740523843116,-549.21225075,0.00046575,120]
[354476272,1740523843127,-500.0,0.00046575,120]
[354476273,1740523843137,-4514.74,0.00046575,120]
[354476274,1740523843147,-500.0,0.00046575,120]
[354476275,1740523843158,-500.0,0.00046575,120]
[354476276,1740523843168,-1370.65,0.00046575,120]
[354476277,1740523843179,-2044.15,0.00046575,120]
[354476278,1740523843188,-4171.98,0.00046575,120]
[354476279,1740523843197,-500.0,0.00046575,120]
[354476280,1740523843206,-500.0,0.00046575,120]
[354476281,1740523843216,-500.0,0.00046575,120]
[354476282,1740523843226,-2506.58,0.00046575,120]
[354476283,1740523843236,-500.0,0.00046575,120]
[354476284,1740523843246,-500.0,0.00046575,120]
[354476285,1740523843255,-500.0,0.00046575,120]
[354476286,1740523843264,-500.0,0.00046575,120]
[354476287,1740523843274,-580.36533417,0.00046575,120]
[354476288,1740523843283,-500.0,0.00046575,120]
[354476289,1740523843292,-2766.91,0.00046575,120]
[354476290,1740523843301,-1744.72,0.00046575,120]
[354476291,1740523843312,-3744.03,0.00046575,120]
[354476292,1740523843322,-533.84,0.00046575,120]
[354476293,1740523843332,-500.0,0.00046575,120]
[354476294,1740523843341,-500.0,0.00046575,120]
[354476295,1740523843351,-500.0,0.00046575,120]
[354476296,1740523843361,-500.0,0.00046575,120]
[354476297,1740523843372,-1247.03,0.00046575,120]
[354476298,1740523843381,-6631.42,0.00046575,120]
[354476299,1740523843391,-500.0,0.00046575,120]
[354476300,1740523843400,-3500.0,0.00046575,120]
[354476301,1740523843409,-500.0,0.00046575,120]
[354476302,1740523843420,-353.88,0.00046575,7]
[354476303,1740523843429,-500.0,0.00046575,120]
[354476304,1740523843439,-500.0,0.00046575,30]
[354476305,1740523843448,-2471.8,0.00046575,120]
[354476306,1740523843457,-2613.45,0.00046575,120]
[354476307,1740523843467,-8273.72,0.00046575,120]
[354476308,1740523843477,-2518.6,0.00046575,120]
[354476309,1740523843486,-500.0,0.00046575,120]
[354476310,1740523843495,-2379.05,0.00046575,120]
[354476311,1740523843504,-2000.0,0.00046575,30]
[354476312,1740523843514,-2653.52,0.00046575,120]
[354476313,1740523843523,-500.0,0.00046575,120]
[354476314,1740523843533,-500.0,0.00046575,120]
[354476315,1740523843542,-2653.43,0.00046575,120]
[354476316,1740523843551,-246.02318856,0.00046575,120]
[354476317,1740523843561,-500.0,0.00046575,120]
[354476318,1740523843570,-500.0,0.00046575,120]
[354476319,1740523843579,-500.0,0.00046575,120]
[354476320,1740523843588,-500.0,0.00046575,120]
[354476321,1740523843598,-500.0,0.00046575,120]
[354476322,1740523843607,-500.0,0.00046575,120]
[354476323,1740523843617,-2218.11,0.00046575,120]
[354476324,1740523843626,-500.0,0.00046575,120]
[354476325,1740523843636,-4748.16,0.00046575,120]
[354476326,1740523843645,-713.69,0.00046575,120]
[354476327,1740523843655,-500.0,0.00046575,120]
[354476328,1740523843664,-2400.26,0.00046575,120]
[354476329,1740523843673,-2891.89,0.00046575,120]
[354476330,1740523843683,-611.60032343,0.00046575,120]
[354476331,1740523843692,-500.0,0.00046575,120]
[354476332,1740523843701,-693.14,0.00046575,120]
[354476334,1740523843710,-972.2,0.00046575,120]
[354476337,1740523843719,-500.0,0.00046575,120]
[354476339,1740523843728,-2728.12,0.00046575,120]
[354476341,1740523843737,-521.97392886,0.00046575,2]
[354476343,1740523843746,-645.08,0.00046575,120]
[354476345,1740523843755,-1447.8,0.00046575,120]
[354476347,1740523843764,-500.0,0.00046575,120]
[354476349,1740523843773,-2835.37,0.00046575,120]
[354476351,1740523843782,-500.0,0.00046575,120]
[354476352,1740523843790,-581.77369159,0.00046575,120]
[354476353,1740523843799,-5114.0,0.00046575,7]
[354476354,1740523843808,-2132.6282212,0.00046587,15]
[354476355,1740523843817,-344.75290582,0.00046749,2]
[354476356,1740523843826,-200.0,0.00046817,7]
[354476357,1740523843836,-500.0,0.00046849,120]
[354476358,1740523843845,-3714.35,0.00046849,120]
[354476359,1740523843854,-1142.9,0.00046849,120]
[354476360,1740523843864,-500.0,0.00046849,120]
[354476361,1740523843874,-2481.42,0.00046849,120]
[354476362,1740523843883,-1145.98,0.00046849,120]
[354476363,1740523843892,-500.0,0.00046849,120]
[354476364,1740523843902,-500.0,0.00046849,120]
[354476365,1740523843912,-500.0,0.00046849,120]
[354476366,1740523843922,-500.0,0.00046849,120]
[354476367,1740523843933,-500.0,0.00046849,120]
[354476368,1740523843944,-1662.46,0.00046849,120]
[354476369,1740523843956,-296.67,0.00046849,120]
[354476370,1740523843965,-416.00723602,0.00046849,120]
[354476371,1740523843974,-500.0,0.00046849,120]
[354476372,1740523843983,-500.0,0.00046849,120]
[354476373,1740523843992,-520.55,0.00046849,120]
[354476374,1740523844002,-500.0,0.00046849,120]
[354476375,1740523844011,-500.0,0.00046849,120]
[354476376,1740523844019,-515.56,0.00046849,120]
[354476377,1740523844029,-597.34,0.00046849,120]
[354476378,1740523844039,-1737.04,0.00046849,120]
[354476379,1740523844048,-1646.27,0.00046849,120]
[354476380,1740523844057,-8115.69,0.00046849,120]
[354476381,1740523844066,-500.0,0.00046849,120]
[354476382,1740523844076,-456.81630556,0.00046849,120]
[354476383,1740523844088,-3192.01,0.00046849,120]
[354476384,1740523844097,-500.0,0.00046849,120]
[354476385,1740523844107,-1888.38,0.00046849,120]
[354476386,1740523844116,-500.0,0.00046849,120]
[354476387,1740523844126,-500.0,0.00046849,120]
[354476388,1740523844136,-1218.74,0.00046849,120]
[354476389,1740523844146,-500.0,0.00046849,120]
[354476390,1740523844156,-500.0,0.00046849,120]
[354476391,1740523844169,-2320.94,0.00046849,120]
[354476392,1740523844358,-2085.08,0.00046849,120]
[354476393,1740523844369,-500.0,0.00046849,120]
[354476394,1740523844379,-2567.17,0.00046849,120]
[354476395,1740523844388,-500.0,0.00046849,120]
[354476396,1740523844399,-740.85,0.00046849,120]
[354476397,1740523844409,-500.0,0.00046849,120]
[354476398,1740523844418,-2636.26,0.00046849,120]
[354476399,1740523844428,-500.0,0.00046849,120]
[354476400,1740523844437,-892.29,0.00046849,120]
[354476401,1740523844446,-645.49705693,0.00046849,120]
[354476402,1740523844456,-1423.33,0.00046849,120]
[354476403,1740523844465,-729.75,0.00046849,120]
[354476404,1740523844475,-705.75,0.00046849,120]
[354476405,1740523844484,-500.0,0.00046849,120]
[354476406,1740523844494,-1916.75,0.00046849,120]
[354476407,1740523844503,-1897.8,0.00046849,120]
[354476408,1740523844513,-4664.22,0.00046849,120]
[354476409,1740523844523,-668.16,0.00046849,120]
[354476410,1740523844532,-1806.42,0.00046849,120]
[354476411,1740523844542,-1138.11,0.00046849,120]
[354476412,1740523844551,-2886.8,0.00046849,120]
[354476413,1740523844560,-500.0,0.00046849,120]
[354476414,1740523844570,-500.0,0.00046849,120]
[354476415,1740523844579,-2100.27,0.00046849,120]
[354476416,1740523844589,-500.0,0.00046849,120]
[354476417,1740523844598,-1366.44,0.00046849,120]
[354476418,1740523844608,-2916.03,0.00046849,120]
[354476419,1740523844617,-5059.03,0.00046849,120]
[354476420,1740523844626,-4319.09,0.00046849,120]
[354476421,1740523844636,-500.0,0.00046849,120]
[354476422,1740523844645,-3246.4,0.00046849,120]
[354476423,1740523844655,-500.0,0.00046849,120]
[354476424,1740523844664,-500.0,0.00046849,120]
[354476425,1740523844673,-2718.58,0.00046849,120]
[354476426,1740523844682,-500.0,0.00046849,120]
[354476427,1740523844692,-500.0,0.00046849,120]
[354476428,1740523844701,-1298.05,0.00046849,120]
[354476429,1740523844710,-2382.56,0.00046849,120]
[354476430,1740523844720,-3321.32,0.00046849,120]
[354476431,1740523844730,-1822.68,0.00046849,120]
[354476432,1740523844740,-500.0,0.00046849,120]
[354476433,1740523844749,-2682.79,0.00046849,120]
[354476434,1740523844760,-500.0,0.00046849,120]
[354476435,1740523844769,-3799.01,0.00046849,120]
[354476436,1740523844779,-2543.0,0.00046849,120]
[354476437,1740523844788,-2989.95,0.00046849,120]
[354476438,1740523844797,-2831.56,0.00046849,120]
[354476439,1740523844807,-2143.48,0.00046849,120]
[354476440,1740523844815,-500.0,0.00046849,120]
[354476441,1740523844825,-750.97,0.00046849,120]
[354476442,1740523844835,-500.0,0.00046849,120]
[354476443,1740523844844,-500.0,0.00046849,120]
[354476444,1740523844854,-500.0,0.00046849,120]
[354476445,1740523844863,-5029.55,0.00046849,120]
[354476446,1740523844872,-500.0,0.00046849,120]
[354476447,1740523844882,-3467.63,0.00046849,120]
[354476448,1740523844891,-500.0,0.00046849,120]
[354476449,1740523844901,-500.0,0.00046849,120]
[354476450,1740523844910,-2203.36,0.00046849,120]
[354476451,1740523844920,-671.01,0.00046849,120]
[354476452,1740523844930,-500.0,0.00046849,120]
[354476453,1740523844939,-3071.38,0.00046849,120]
[354476454,1740523844949,-500.0,0.00046849,120]
[354476455,1740523844959,-551.69,0.00046849,120]
[354476456,1740523844968,-500.0,0.00046849,120]
[354476457,1740523844979,-1522.25,0.00046849,120]
[354476458,1740523844988,-3711.8,0.00046849,120]
[354476459,1740523844997,-500.0,0.00046849,120]
[354476460,1740523845007,-500.0,0.00046849,120]
[354476461,1740523845017,-500.0,0.00046849,120]
[354476462,1740523845027,-500.0,0.00046849,120]
[354476463,1740523845036,-500.0,0.00046849,120]
[354476464,1740523845046,-3960.02,0.00046849,120]
[354476465,1740523845056,-4099.32,0.00046849,120]
[354476466,1740523845065,-4671.2,0.00046849,120]
[354476467,1740523845074,-500.0,0.00046849,120]
[354476468,1740523845089,-500.0,0.00046849,120]
[354476469,1740523845099,-3780.25,0.00046849,120]
[354476470,1740523845108,-500.0,0.00046849,120]
[354476471,1740523845118,-1280.88,0.00046849,120]
[354476472,1740523845129,-500.0,0.00046849,120]
[354476473,1740523845139,-2591.52,0.00046849,120]
[354476474,1740523845149,-4963.55,0.00046849,120]
[354476475,1740523845159,-500.0,0.00046849,120]
[354476476,1740523845169,-500.0,0.00046849,120]
[354476477,1740523845179,-6256.61,0.00046849,120]
[354476478,1740523845189,-500.0,0.00046849,120]
[354476479,1740523845198,-616.79,0.00046849,120]
[354476480,1740523845208,-500.0,0.00046849,120]
[354476481,1740523845217,-500.0,0.00046849,120]
[354476482,1740523845227,-643.58,0.00046849,120]
[354476483,1740523845236,-768.14,0.00046849,120]
[354476484,1740523845246,-509.53,0.00046849,120]
[354476485,1740523845256,-500.0,0.00046849,120]
[354476486,1740523845266,-1305.38,0.00046849,7]
[354476487,1740523845277,-595.23,0.00046849,120]
[354476488,1740523845287,-4247.17,0.00046849,120]
[354476489,1740523845296,-500.0,0.00046849,120]
[354476490,1740523845306,-3964.13,0.00046849,120]
[354476491,1740523845315,-1328.12,0.00046849,120]
[354476492,1740523845324,-500.0,0.00046849,120]
[354476493,1740523845334,-500.0,0.00046849,120]
[354476494,1740523845343,-500.0,0.00046849,120]
[354476495,1740523845352,-3898.94,0.00046849,120]
[354476496,1740523845362,-500.0,0.00046849,120]
[354476497,1740523845371,-500.0,0.00046849,120]
[354476498,1740523845381,-500.0,0.00046849,120]
[354476499,1740523845390,-5303.55,0.00046849,120]
[354476500,1740523845400,-570.36,0.00046849,120]
[354476501,1740523845410,-2763.31,0.00046849,120]
[354476502,1740523845420,-500.0,0.00046849,120]
[354476503,1740523845429,-500.0,0.00046849,120]
[354476504,1740523845439,-2107.57,0.00046849,120]
[354476505,1740523845448,-500.0,0.00046849,120]
[354476506,1740523845458,-500.0,0.00046849,7]
[354476507,1740523845467,-946.05,0.00046849,120]
[354476508,1740523845477,-500.0,0.00046849,120]
[354476509,1740523845487,-500.0,0.00046849,120]
[354476510,1740523845496,-380.5327962,0.00046849,120]
[354476511,1740523845506,-799.82,0.00046849,120]
[354476512,1740523845515,-1452.98,0.00046849,120]
[354476513,1740523845525,-500.0,0.00046849,120]
[354476514,1740523845536,-872.21,0.00046849,120]
[354476515,1740523845546,-1308.96,0.00046849,120]
[354476516,1740523845556,-5564.94,0.00046849,100]
[354476517,1740523845566,-922.97,0.00046849,120]
[354476518,1740523845575,-4258.3,0.00046849,120]
[354476519,1740523845585,-500.0,0.00046849,120]
[354476520,1740523845595,-500.0,0.00046849,120]
[354476521,1740523845604,-1064.14,0.00046849,120]
[354476522,1740523845613,-923.48,0.00046849,120]
[354476523,1740523845623,-500.0,0.00046849,120]
[354476524,1740523845632,-500.0,0.00046849,120]
[354476525,1740523845642,-3714.28,0.00046849,120]
[354476526,1740523845651,-500.0,0.00046849,120]
[354476527,1740523845661,-500.0,0.00046849,120]
[354476528,1740523845670,-500.0,0.00046849,120]
[354476529,1740523845680,-2811.63,0.00046849,120]
[354476530,1740523845690,-500.0,0.00046849,120]
[354476531,1740523845699,-657.42,0.00046849,120]
[354476532,1740523845708,-500.0,0.00046849,120]
[354476533,1740523845717,-2840.63,0.00046849,120]
[354476534,1740523845727,-5487.35,0.00046849,120]
[354476535,1740523845736,-527.96,0.00046849,120]
[354476536,1740523845746,-500.0,0.00046849,120]
[354476537,1740523845755,-1379.62,0.00046849,120]
[354476538,1740523845765,-255.32769704,0.00046849,120]
[354476539,1740523845775,-619.56379868,0.00046849,120]
[354476540,1740523845784,-1664.86,0.00046849,120]
[354476541,1740523845794,-595.9,0.00046849,120]
[354476542,1740523845804,-500.0,0.00046849,120]
[354476543,1740523845814,-500.0,0.00046849,120]
[354476544,1740523845823,-1050.04,0.00046849,120]
[354476545,1740523845833,-500.0,0.00046849,120]
[354476546,1740523845843,-500.0,0.00046849,120]
[354476547,1740523845853,-500.0,0.00046849,120]
[354476548,1740523845863,-711.18,0.00046849,120]
[354476549,1740523845873,-500.0,0.00046849,120]
[354476550,1740523845882,-500.0,0.00046849,120]
[354476551,1740523845893,-500.0,0.00046849,120]
[354476552,1740523845902,-1262.57,0.00046849,120]
[354476553,1740523845912,-3135.94,0.00046849,120]
[354476554,1740523845921,-500.0,0.00046849,120]
[354476555,1740523845931,-4313.99,0.00046849,120]
[354476556,1740523845940,-500.0,0.00046849,120]
[354476557,1740523845949,-5005.04,0.00046849,120]
[354476558,1740523845958,-1692.2,0.00046849,120]
[354476559,1740523845967,-1196.06,0.00046849,120]
[354476560,1740523845976,-500.0,0.00046849,120]
[354476561,1740523845986,-500.0,0.00046849,120]
[354476562,1740523845995,-500.0,0.00046849,120]
[354476563,1740523846005,-3291.08,0.00046849,120]
[354476565,1740523846014,-500.0,0.00046849,120]
[354476566,1740523846023,-3117.24,0.00046849,120]
[354476567,1740523846032,-500.0,0.00046849,120]
[354476568,1740523846042,-500.0,0.00046849,120]
[354476569,1740523846051,-500.0,0.00046849,120]
[354476570,1740523846060,-4514.74,0.00046849,120]
[354476571,1740523846069,-500.0,0.00046849,120]
[354476572,1740523846080,-500.0,0.00046849,120]
[354476573,1740523846092,-1370.65,0.00046849,120]
[354476574,1740523846102,-2044.15,0.00046849,120]
[354476575,1740523846113,-4171.98,0.00046849,120]
[354476576,1740523846122,-500.0,0.00046849,120]
[354476577,1740523846133,-500.0,0.00046849,120]
[354476578,1740523846143,-2506.58,0.00046849,120]
[354476579,1740523846152,-500.0,0.00046849,120]
[354476580,1740523846162,-500.0,0.00046849,120]
[354476582,1740523846171,-500.0,0.00046849,120]
[354476583,1740523846182,-500.0,0.00046849,120]